fUSD/lending_fUSD_20260506
["ID","MTS","AMOUNT","RATE_DAILY","PERIOD"]
[421675998,1778038259000,-532.46465239,0.00041917,120]
[421676032,1778038259000,-500.0,0.00041917,120]
[421676036,1778038259000,-168.32272258,0.00041917,120]
[421676039,1778038259000,-500.0,0.00041917,120]
[421676029,1778038259000,-500.0,0.00041917,120]
[421676031,1778038259000,-500.0,0.00041917,120]
[421676034,1778038259000,-205.73831304,0.00041917,120]
[421676037,1778038259000,-500.0,0.00041917,120]
[421676038,1778038259000,-500.0,0.00041917,120]
[421676043,1778038259000,-500.0,0.00041917,120]
[421676046,1778038259000,-500.0,0.00041917,120]
[421676047,1778038259000,-5303.93,0.00041917,120]
[421676050,1778038259000,-500.0,0.00041917,120]
[421676035,1778038259000,-500.0,0.00041917,120]
[421676048,1778038259000,-5303.93,0.00041917,120]
[421676049,1778038259000,-500.0,0.00041917,120]
[421676045,1778038259000,-5303.93,0.00041917,120]
[421676052,1778038259000,-5303.93,0.00041917,120]
[421676053,1778038259000,-500.0,0.00041917,120]
[421676055,1778038259000,-215.24069481,0.00041917,120]
[421676044,1778038259000,-500.0,0.00041917,120]
[421676054,1778038259000,-5303.93,0.00041917,120]
[421676057,1778038259000,-5303.93,0.00041917,120]
[421676056,1778038259000,-5303.93,0.00041917,120]
[421676058,1778038259000,-5303.93,0.00041917,120]
[421676059,1778038259000,-1285.04030461,0.00041917,120]
[421675996,1778038259000,-500.0,0.00041917,120]
[421676051,1778038259000,-5303.93,0.00041917,120]
[421676033,1778038259000,-500.0,0.00041917,120]
[421675985,1778038259000,-500.0,0.00041917,120]
[421676041,1778038259000,-500.0,0.00041917,120]
[421676006,1778038259000,-276.45904597,0.00041917,120]
[421676042,1778038259000,-500.0,0.00041917,120]
[421676016,1778038259000,-500.0,0.00041917,120]
[421676012,1778038259000,-500.0,0.00041917,120]
[421676005,1778038259000,-169.63198966,0.00041917,7]
[421676009,1778038259000,-628.3179824,0.00041917,120]
[421676007,1778038259000,-316.45412614,0.00041917,120]
[421676008,1778038259000,-500.0,0.00041917,120]
[421676011,1778038259000,-500.0,0.00041917,120]
[421676013,1778038259000,-500.0,0.00041917,120]
[421676015,1778038259000,-500.0,0.00041917,120]
[421676014,1778038259000,-500.0,0.00041917,120]
[421676017,1778038259000,-500.0,0.00041917,120]
[421676010,1778038259000,-152.86949175,0.00041917,120]
[421676020,1778038259000,-500.0,0.00041917,120]
[421676030,1778038259000,-500.0,0.00041917,120]
[421676019,1778038259000,-500.0,0.00041917,120]
[421676040,1778038259000,-500.0,0.00041917,120]
[421676028,1778038259000,-261.90593041,0.00041917,120]
[421676027,1778038259000,-274.91411606,0.00041917,120]
[421676024,1778038259000,-199.7696019,0.00041917,120]
[421676025,1778038259000,-500.0,0.00041917,120]
[421676023,1778038259000,-500.0,0.00041917,120]
[421676026,1778038259000,-500.0,0.00041917,120]
[421676018,1778038259000,-500.0,0.00041917,120]
[421676022,1778038259000,-170.35280383,0.00041917,120]
[421676021,1778038259000,-547.87679587,0.00041917,120]
[421676080,1778038260000,-4018.88969539,0.00041917,120]
[421676083,1778038260000,-347.90311336,0.00041917,120]
[421676081,1778038260000,-5303.93,0.00041917,120]
[421676082,1778038260000,-5303.93,0.00041917,120]
[421676084,1778038260000,-5303.93,0.00041917,120]
[421676092,1778038260000,-5303.93,0.00041917,120]
[421676094,1778038260000,-5303.93,0.00041917,120]
[421676085,1778038260000,-320.505023,0.00041917,7]
[421676088,1778038260000,-5303.93,0.00041917,120]
[421676093,1778038260000,-215.42536592,0.00041917,120]
[421676087,1778038260000,-5303.93,0.00041917,120]
[421676091,1778038260000,-5303.93,0.00041917,120]
[421676090,1778038260000,-5303.93,0.00041917,120]
[421676089,1778038260000,-5303.93,0.00041917,120]
[421676079,1778038260000,-483.227327,0.0004,30]
[421676086,1778038260000,-244.77165149,0.00041917,120]
[421676078,1778038260000,-483.227327,0.0004,30]
[421676068,1778038260000,-504.0,0.00028647,3]
[421676077,1778038260000,-300.0,0.00038259,2]
[421676060,1778038260000,-0.00134065,0.000149,2]
[421676061,1778038260000,-256.83043398,0.000149,2]
[421676063,1778038260000,-1734.16822537,0.000149,2]
[421676062,1778038260000,-509.0,0.000149,2]
[421676064,1778038260000,-3215.26496774,0.00020011,2]
[421676065,1778038260000,-3625.0,0.00021381,2]
[421676095,1778038260000,-5303.93,0.00041917,120]
[421676076,1778038260000,-300.0,0.00038259,2]
[421676069,1778038260000,-584.77922852,0.00028937,7]
[421676066,1778038260000,-504.0,0.00027137,2]
[421676071,1778038260000,-504.0,0.00029403,4]
[421676073,1778038260000,-2269.47,0.00035019,2]
[421676070,1778038260000,-2000.0,0.00029037,7]
[421676072,1778038260000,-6919.61044324,0.00033307,2]
[421676074,1778038260000,-483.227327,0.00036567,7]
[421676075,1778038260000,-189.47926866,0.000372,120]
[421676067,1778038260000,-504.0,0.00027892,2]
[421676107,1778038260000,-156.57312947,0.00041917,120]
[421676106,1778038260000,-298.19071279,0.00041917,120]
[421676102,1778038260000,-171.71504614,0.00041917,120]
[421676111,1778038260000,-152.48017877,0.00041917,120]
[421676122,1778038260000,-500.0,0.00041917,120]
[421676097,1778038260000,-320.505023,0.00041917,7]
[421676124,1778038260000,-274.71396912,0.00041917,120]
[421676125,1778038260000,-12910.14,0.00041917,120]
[421676133,1778038260000,-12910.14,0.00041917,120]
[421676127,1778038260000,-12910.14,0.00041917,120]
[421676131,1778038260000,-253.94276667,0.00041917,120]
[421676128,1778038260000,-12910.14,0.00041917,120]
[421676132,1778038260000,-12910.14,0.00041917,120]
[421676126,1778038260000,-12910.14,0.00041917,120]
[421676129,1778038260000,-187.92811787,0.00041917,120]
[421676134,1778038260000,-434.91998517,0.00041917,120]
[421676130,1778038260000,-12910.14,0.00041917,120]
[421676135,1778038260000,-8372.74208621,0.00041917,120]
[421676114,1778038260000,-178.22170163,0.00041917,120]
[421676118,1778038260000,-207.2365911,0.00041917,120]
[421676123,1778038260000,-198.14550256,0.00041917,120]
[421676119,1778038260000,-183.60151602,0.00041917,120]
[421676096,1778038260000,-5303.93,0.00041917,120]
[421676104,1778038260000,-598.79813321,0.00041917,120]
[421676099,1778038260000,-5304.0759941,0.00041917,120]
[421676117,1778038260000,-225.17177985,0.00041917,120]
[421676103,1778038260000,-160.93862203,0.00041917,120]
[421676100,1778038260000,-500.0,0.00041917,120]
[421676098,1778038260000,-5303.93,0.00041917,120]
[421676105,1778038260000,-320.505023,0.00041917,7]
[421676101,1778038260000,-615.43117948,0.00041917,120]
[421676110,1778038260000,-225.43895946,0.00041917,120]
[421676108,1778038260000,-320.505023,0.00041917,7]
[421676113,1778038260000,-204.12571387,0.00041917,120]
[421676120,1778038260000,-265.9375869,0.00041917,120]
[421676121,1778038260000,-500.0,0.00041917,120]
[421676115,1778038260000,-522.68885756,0.00041917,120]
[421676112,1778038260000,-211.25997719,0.00041917,120]
[421676109,1778038260000,-187.47656989,0.00041917,120]
[421676116,1778038260000,-395.04557465,0.00041917,120]
[421676139,1778038261000,-2804.22217991,0.0001326,2]
[421676136,1778038261000,-6747.07977115,0.0001326,2]
[421676138,1778038261000,-16057.96712772,0.0001326,2]
[421676137,1778038261000,-452.55608645,0.0001326,2]
[421676140,1778038261000,-1729.999998,0.0001326,2]
[421676141,1778038305000,181.46,0.00029869,120]
[421676142,1778038313000,499.69,0.00030137,120]
[421676145,1778038364000,-4700.0,0.000107,2]
[421676144,1778038364000,-300.0,0.00010699,2]
[421676146,1778038365000,-5000.0,0.000107,2]
[421676147,1778038366000,-5000.0,0.000107,2]
[421676149,1778038367000,-5000.0,0.000107,2]
[421676148,1778038367000,-5000.0,0.000107,2]
[421676151,1778038368000,-5000.0,0.000107,2]
[421676150,1778038368000,-5000.0,0.000107,2]
[421676154,1778038369000,-5000.0,0.000107,2]
[421676153,1778038369000,-5000.0,0.000107,2]
[421676152,1778038369000,-5000.0,0.000107,2]
[421676156,1778038370000,-5000.0,0.000107,2]
[421676155,1778038370000,-5000.0,0.000107,2]
[421676159,1778038371000,-5000.0,0.000107,2]
[421676158,1778038371000,-5000.0,0.000107,2]
[421676157,1778038371000,-5000.0,0.000107,2]
[421676160,1778038372000,-5000.0,0.000107,2]
[421676162,1778038372000,-5000.0,0.000107,2]
[421676161,1778038372000,-5000.0,0.000107,2]
[421676163,1778038373000,-650.7604898,0.000107,2]
[421676173,1778038444000,-500.0,0.00013806,2]
[421676165,1778038444000,-250.0,0.00011769,2]
[421676166,1778038444000,-2445.950878,0.00013133,2]
[421676164,1778038444000,-503.45732681,0.00011769,2]
[421676168,1778038444000,-3856.29043823,0.0001326,2]
[421676167,1778038444000,-250.0,0.00013199,2]
[421676172,1778038444000,-554.10739171,0.00013806,2]
[421676169,1778038444000,-31648.11560146,0.00013533,2]
[421676170,1778038444000,-150.0,0.00013805,2]
[421676171,1778038444000,-423.37705159,0.00013806,2]
[421676175,1778038444000,-500.0,0.00013806,2]
[421676176,1778038444000,-500.0,0.00013806,2]
[421676177,1778038444000,-375.12496605,0.00013806,2]
[421676174,1778038444000,-500.0,0.00013806,2]
[421676179,1778038444000,-500.0,0.00013806,2]
[421676178,1778038444000,-500.0,0.00013806,2]
[421676192,1778038444000,-31648.11560146,0.00014353,2]
[421676191,1778038444000,-2500.0,0.00014253,2]
[421676190,1778038444000,-31648.11560146,0.0001408,2]
[421676187,1778038444000,-100560.59293555,0.0001382,2]
[421676189,1778038444000,-2000.0,0.0001398,2]
[421676188,1778038444000,-500.0,0.00013873,2]
[421676185,1778038444000,-308.38918644,0.00013806,2]
[421676184,1778038444000,-500.0,0.00013806,2]
[421676183,1778038444000,-500.0,0.00013806,2]
[421676181,1778038444000,-500.0,0.00013806,2]
[421676182,1778038444000,-500.0,0.00013806,2]
[421676180,1778038444000,-500.0,0.00013806,2]
[421676186,1778038444000,-31648.11560146,0.00013807,2]
[421676198,1778038445000,-179.09783268,0.00014899,2]
[421676194,1778038445000,-9125.23,0.00014421,2]
[421676193,1778038445000,-285.03778927,0.00014421,2]
[421676196,1778038445000,-500.0,0.00014899,2]
[421676195,1778038445000,-31648.11560146,0.00014627,2]
[421676197,1778038445000,-500.0,0.00014899,2]
[421676202,1778038445000,-480120.1737,0.000149,2]
[421676201,1778038445000,-5000.0,0.000149,2]
[421676200,1778038445000,-500.0,0.00014899,2]
[421676203,1778038445000,-31648.11560146,0.000149,2]
[421676204,1778038445000,-1906.6069,0.000149,2]
[421676205,1778038445000,-191379.805217,0.000149,2]
[421676206,1778038445000,174.87,7.273e-05,2]
[421676199,1778038445000,-438.06477791,0.00014899,2]
[421676207,1778038446000,-157.00134065,9.698e-05,2]
[421676208,1778038478000,-17.86865935,9.698e-05,2]
[421676209,1778038528000,151.11654153,0.00027414,120]
[421676210,1778038861000,1233.38,0.00030137,120]
[421676211,1778039232000,-152.42623428,0.00011922,2]
[421676212,1778039241000,-918.70510637,0.00012022,2]
[421676214,1778039246000,220.01,6.824e-05,2]
[421676213,1778039246000,220.01,6.482e-05,2]
[421676216,1778039246000,220.01,7.506e-05,2]
[421676215,1778039246000,220.01,7.165e-05,2]
[421676217,1778039246000,220.01,7.847e-05,2]
[421676218,1778039247000,220.01,8.188e-05,2]
[421676219,1778039256000,-201.48290719,8.529e-05,2]
[421676220,1778039351000,-18.52709281,8.529e-05,2]
[421676221,1778039351000,-220.01,8.871e-05,2]
[421676223,1778039351000,-220.01,9.553e-05,2]
[421676222,1778039351000,-220.01,9.212e-05,2]
[421676225,1778039351000,-220.01,0.00010235,2]
[421676227,1778039351000,-220.01,0.00010918,2]
[421676229,1778039351000,-250.0,0.00011401,2]
[421676224,1778039351000,-220.01,9.894e-05,2]
[421676228,1778039351000,-220.01,0.00011259,2]
[421676230,1778039351000,-220.01,0.000116,2]
[421676231,1778039351000,-220.01,0.00011941,2]
[421676233,1778039351000,-3032.90690373,0.00012022,2]
[421676234,1778039351000,-500.0,0.00012022,2]
[421676232,1778039351000,-218.53,0.00011966,2]
[421676235,1778039351000,-174.87,0.00012122,2]
[421676236,1778039351000,-31.0915592,0.00012142,2]
[421676226,1778039351000,-220.01,0.00010577,2]
[421676265,1778039433000,-150.0,0.00013389,2]
[421676278,1778039433000,-500.0,0.00013466,2]
[421676267,1778039433000,-150.23954053,0.00013389,2]
[421676271,1778039433000,-150.87735315,0.00013389,2]
[421676276,1778039433000,-150.0,0.00013389,2]
[421676274,1778039433000,-150.0,0.00013389,2]
[421676273,1778039433000,-150.0,0.00013389,2]
[421676277,1778039433000,-1600.0,0.00013397,2]
[421676269,1778039433000,-151.74680912,0.00013389,2]
[421676279,1778039433000,-6498.67831298,0.00013502,2]
[421676294,1778039433000,-500.0,0.00013598,2]
[421676282,1778039433000,-151.3357466,0.00013589,2]
[421676286,1778039433000,-150.0,0.00013598,2]
[421676284,1778039433000,-500.0,0.00013598,2]
[421676287,1778039433000,-240.12402096,0.00013598,2]
[421676288,1778039433000,-500.0,0.00013598,2]
[421676289,1778039433000,-500.0,0.00013598,2]
[421676290,1778039433000,-566.02794626,0.00013598,2]
[421676293,1778039433000,-500.0,0.00013598,2]
[421676292,1778039433000,-500.0,0.00013598,2]
[421676263,1778039433000,-150.0,0.00013389,2]
[421676291,1778039433000,-268.05742042,0.00013598,2]
[421676280,1778039433000,-4166.51981926,0.00013502,2]
[421676262,1778039433000,-150.83883825,0.00013389,2]
[421676252,1778039433000,-157.05,0.00013177,2]
[421676260,1778039433000,-5773.37,0.00013371,2]
[421676296,1778039433000,-500.0,0.00013598,2]
[421676238,1778039433000,-500.0,0.00011822,2]
[421676240,1778039433000,-220.01,0.00012282,2]
[421676239,1778039433000,-133.1532408,0.00012142,2]
[421676241,1778039433000,-2942.9,0.00012524,2]
[421676248,1778039433000,-301.66,0.00012994,2]
[421676242,1778039433000,-220.01,0.00012624,2]
[421676244,1778039433000,-500.0,0.00012855,2]
[421676247,1778039433000,-150.0,0.00012984,2]
[421676243,1778039433000,-1852.42,0.00012639,2]
[421676261,1778039433000,-150.0,0.00013389,2]
[421676246,1778039433000,-220.01,0.00012965,2]
[421676249,1778039433000,-2000.0,0.00013087,2]
[421676250,1778039433000,-1200.0,0.00013176,2]
[421676255,1778039433000,-9999.99,0.00013177,2]
[421676251,1778039433000,-300.0,0.00013176,2]
[421676253,1778039433000,-499.99,0.00013177,2]
[421676254,1778039433000,-1214.25,0.00013177,2]
[421676258,1778039433000,-150.0,0.00013351,2]
[421676256,1778039433000,-603.53,0.00013177,2]
[421676259,1778039433000,-5438.41,0.00013352,2]
[421676257,1778039433000,-300.0,0.00013349,2]
[421676245,1778039433000,-164.84,0.00012946,2]
[421676295,1778039433000,-518.72617076,0.00013598,2]
[421676275,1778039433000,-150.0,0.00013389,2]
[421676297,1778039433000,-518.16392299,0.00013598,2]
[421676326,1778039433000,-500.0,0.00013598,2]
[421676325,1778039433000,-500.0,0.00013598,2]
[421676329,1778039433000,-500.0,0.00013598,2]
[421676334,1778039433000,-500.0,0.00013598,2]
[421676330,1778039433000,-500.0,0.00013598,2]
[421676327,1778039433000,-500.0,0.00013598,2]
[421676331,1778039433000,-417.65120364,0.00013598,2]
[421676333,1778039433000,-500.0,0.00013598,2]
[421676332,1778039433000,-500.0,0.00013598,2]
[421676335,1778039433000,-500.0,0.00013598,2]
[421676336,1778039433000,-500.0,0.00013598,2]
[421676338,1778039433000,-500.0,0.00013598,2]
[421676337,1778039433000,-500.0,0.00013598,2]
[421676339,1778039433000,-500.0,0.00013598,2]
[421676340,1778039433000,-500.0,0.00013598,2]
[421676342,1778039433000,-500.0,0.00013598,2]
[421676341,1778039433000,-500.0,0.00013598,2]
[421676344,1778039433000,-500.0,0.00013598,2]
[421676343,1778039433000,-500.0,0.00013598,2]
[421676345,1778039433000,-500.0,0.00013598,2]
[421676346,1778039433000,-500.0,0.00013598,2]
[421676347,1778039433000,-500.0,0.00013598,2]
[421676299,1778039433000,-500.0,0.00013598,2]
[421676324,1778039433000,-500.0,0.00013598,2]
[421676322,1778039433000,-500.0,0.00013598,2]
[421676328,1778039433000,-500.0,0.00013598,2]
[421676348,1778039433000,-500.0,0.00013598,2]
[421676298,1778039433000,-500.0,0.00013598,2]
[421676300,1778039433000,-500.0,0.00013598,2]
[421676301,1778039433000,-500.0,0.00013598,2]
[421676319,1778039433000,-610.92748333,0.00013598,2]
[421676306,1778039433000,-500.0,0.00013598,2]
[421676302,1778039433000,-500.0,0.00013598,2]
[421676303,1778039433000,-500.0,0.00013598,2]
[421676305,1778039433000,-500.0,0.00013598,2]
[421676310,1778039433000,-500.0,0.00013598,2]
[421676311,1778039433000,-500.0,0.00013598,2]
[421676307,1778039433000,-500.0,0.00013598,2]
[421676308,1778039433000,-500.0,0.00013598,2]
[421676304,1778039433000,-500.0,0.00013598,2]
[421676312,1778039433000,-500.0,0.00013598,2]
[421676309,1778039433000,-500.0,0.00013598,2]
[421676315,1778039433000,-500.0,0.00013598,2]
[421676317,1778039433000,-500.0,0.00013598,2]
[421676321,1778039433000,-500.0,0.00013598,2]
[421676320,1778039433000,-500.0,0.00013598,2]
[421676316,1778039433000,-500.0,0.00013598,2]
[421676318,1778039433000,-500.0,0.00013598,2]
[421676314,1778039433000,-500.0,0.00013598,2]
[421676313,1778039433000,-500.0,0.00013598,2]
[421676323,1778039433000,-500.0,0.00013598,2]
[421676367,1778039434000,-500.0,0.00013598,2]
[421676356,1778039434000,-500.0,0.00013598,2]
[421676363,1778039434000,-500.0,0.00013598,2]
[421676362,1778039434000,-500.0,0.00013598,2]
[421676359,1778039434000,-500.0,0.00013598,2]
[421676357,1778039434000,-500.0,0.00013598,2]
[421676358,1778039434000,-500.0,0.00013598,2]
[421676360,1778039434000,-500.0,0.00013598,2]
[421676351,1778039434000,-500.0,0.00013598,2]
[421676355,1778039434000,-500.0,0.00013598,2]
[421676354,1778039434000,-500.0,0.00013598,2]
[421676353,1778039434000,-500.0,0.00013598,2]
[421676352,1778039434000,-500.0,0.00013598,2]
[421676349,1778039434000,-500.0,0.00013598,2]
[421676350,1778039434000,-500.0,0.00013598,2]
[421676364,1778039434000,-500.0,0.00013598,2]
[421676361,1778039434000,-500.0,0.00013598,2]
[421676365,1778039434000,-500.0,0.00013598,2]
[421676382,1778039434000,-132328.87941795,0.00013599,2]
[421676370,1778039434000,-500.0,0.00013598,2]
[421676385,1778039434000,-339.75818201,0.00013599,2]
[421676366,1778039434000,-500.0,0.00013598,2]
[421676381,1778039434000,-153869.38790149,0.00013599,2]
[421676384,1778039434000,-317.1374225,0.00013599,2]
[421676378,1778039434000,-168.0,0.00013598,2]
[421676377,1778039434000,-168.0,0.00013598,2]
[421676383,1778039434000,-49986.85227493,0.00013599,2]
[421676379,1778039434000,-169.99787233,0.00013598,2]
[421676380,1778039434000,-2108447.0826089,0.00013599,2]
[421676375,1778039434000,-500.0,0.00013598,2]
[421676374,1778039434000,-500.0,0.00013598,2]
[421676371,1778039434000,-500.0,0.00013598,2]
[421676368,1778039434000,-500.0,0.00013598,2]
[421676372,1778039434000,-500.0,0.00013598,2]
[421676376,1778039434000,-500.0,0.00013598,2]
[421676373,1778039434000,-500.0,0.00013598,2]
[421676369,1778039434000,-336.38059503,0.00013598,2]
[421676410,1778039438000,-166.66,0.00013877,2]
[421676412,1778039438000,-2200.0,0.000139,5]
[421676409,1778039438000,-597.898,0.00013877,2]
[421676413,1778039438000,-5492.9257,0.00013925,2]
[421676415,1778039438000,-153.12137068,0.00013955,2]
[421676414,1778039438000,-1082.9753,0.00013925,2]
[421676416,1778039438000,-2000.0,0.0001398,2]
[421676417,1778039438000,-27810.3742,0.0001398,2]
[421676408,1778039438000,-5499.608,0.00013877,2]
[421676419,1778039438000,-200.0,0.00013986,2]
[421676411,1778039438000,-150.0,0.00013885,2]
[421676404,1778039438000,-150.99,0.00013806,2]
[421676401,1778039438000,-700.0,0.000137,5]
[421676406,1778039438000,-150.0,0.00013814,2]
[421676405,1778039438000,-1194.41,0.00013806,2]
[421676403,1778039438000,-150.0,0.00013806,2]
[421676402,1778039438000,-1500.0,0.000138,5]
[421676400,1778039438000,-169.75,0.00013699,2]
[421676397,1778039438000,-150.0,0.00013602,2]
[421676398,1778039438000,-2500.0,0.00013699,2]
[421676399,1778039438000,-155.13,0.00013699,2]
[421676396,1778039438000,-54303.31469224,0.00013599,2]
[421676395,1778039438000,-407.58749998,0.00013599,2]
[421676424,1778039438000,-220.03,0.00014025,2]
[421676407,1778039438000,-500.0,0.00013872,2]
[421676418,1778039438000,-9999.99,0.0001398,2]
[421676442,1778039438000,-166.66,0.00014335,2]
[421676425,1778039438000,-9999.99,0.00014025,2]
[421676422,1778039438000,-24999.99,0.00014025,2]
[421676449,1778039438000,-169.75,0.00014384,2]
[421676451,1778039438000,-291.81242439,0.00014419,2]
[421676447,1778039438000,-150.0,0.00014381,2]
[421676445,1778039438000,-1747.6470105,0.00014347,2]
[421676453,1778039438000,-500.0,0.00014432,2]
[421676440,1778039438000,-4403.39794085,0.00014333,2]
[421676439,1778039438000,-641.32900993,0.00014333,2]
[421676434,1778039438000,-200.0,0.00014263,2]
[421676435,1778039438000,-2572.21197421,0.00014281,2]
[421676438,1778039438000,-5012.50772493,0.00014333,2]
[421676433,1778039438000,-150.0,0.00014239,2]
[421676459,1778039438000,-515.79571264,0.00014432,2]
[421676437,1778039438000,-172.36548996,0.00014333,2]
[421676429,1778039438000,-169.75,0.00014041,2]
[421676420,1778039438000,-157.05,0.00014,2]
[421676423,1778039438000,-999.99,0.00014025,2]
[421676426,1778039438000,-9999.99,0.00014025,2]
[421676427,1778039438000,-150.0,0.00014027,2]
[421676421,1778039438000,-154.97,0.00014025,2]
[421676428,1778039438000,-4166.51981917,0.00014032,2]
[421676431,1778039438000,-500.0,0.00014145,2]
[421676432,1778039438000,-204.33,0.000142,2]
[421676436,1778039438000,-2500.0,0.00014333,2]
[421676430,1778039438000,-150.0,0.00014133,2]
[421676527,1778039439000,-150.0,0.00014877,2]
[421676515,1778039439000,-157.05,0.00014824,2]
[421676517,1778039439000,-153.12137068,0.00014826,2]
[421676519,1778039439000,-500.0,0.00014873,2]
[421676513,1778039439000,-3000.0,0.000148,5]
[421676521,1778039439000,-162.83760621,0.00014877,2]
[421676523,1778039439000,-150.0,0.00014877,2]
[421676531,1778039439000,-172.05655744,0.00014877,2]
[421676529,1778039439000,-157.47218583,0.00014877,2]
[421676509,1778039439000,-82626.20270772,0.000148,2]
[421676539,1778039439000,-500.0,0.00014899,2]
[421676525,1778039439000,-150.00000001,0.00014877,2]
[421676535,1778039439000,-500.0,0.00014899,2]
[421676537,1778039439000,-500.0,0.00014899,2]
[421676540,1778039439000,-500.0,0.00014899,2]
[421676552,1778039439000,-500.0,0.00014899,2]
[421676544,1778039439000,-500.0,0.00014899,2]
[421676548,1778039439000,-500.0,0.00014899,2]
[421676550,1778039439000,-346.95894298,0.00014899,2]
[421676556,1778039439000,-500.0,0.00014899,2]
[421676511,1778039439000,-777770.0906648,0.000148,2]
[421676533,1778039439000,-500.0,0.00014899,2]
[421676497,1778039439000,-4549.4501895,0.00014586,2]
[421676467,1778039439000,-255.0,0.00014459,2]
[421676494,1778039439000,-174.87,0.00014547,2]
[421676542,1778039439000,-500.0,0.00014899,2]
[421676461,1778039439000,-1500000.0,0.00014433,2]
[421676471,1778039439000,-500.0,0.00014473,2]
[421676475,1778039439000,-160.86224571,0.00014473,2]
[421676473,1778039439000,-500.0,0.00014473,2]
[421676477,1778039439000,-501.10461545,0.00014473,2]
[421676479,1778039439000,-500.0,0.00014473,2]
[421676465,1778039439000,-150.0,0.00014452,2]
[421676463,1778039439000,-3678.0062,0.00014433,2]
[421676469,1778039439000,-500.0,0.00014473,2]
[421676481,1778039439000,-500.45374323,0.00014473,2]
[421676485,1778039439000,-1680.0,0.00014493,2]
[421676483,1778039439000,-500.0,0.00014473,2]
[421676488,1778039439000,-83094.7747067,0.00014533,2]
[421676499,1778039439000,-150.0,0.00014664,2]
[421676503,1778039439000,-2572.2119742,0.00014725,2]
[421676501,1778039439000,-2000.0,0.00014723,2]
[421676492,1778039439000,-908.0536859,0.00014533,2]
[421676505,1778039439000,-166.66,0.00014793,2]
[421676490,1778039439000,-2415.6553717,0.00014533,2]
[421676507,1778039439000,-505321.85806375,0.000148,2]
[421676496,1778039439000,-4166.51981917,0.00014562,2]
[421676554,1778039439000,-500.0,0.00014899,2]
[421676546,1778039439000,-500.0,0.00014899,2]
[421676560,1778039439000,-500.0,0.00014899,2]
[421676613,1778039439000,-500.0,0.00014999,2]
[421676597,1778039439000,-386.37185823,0.000149,2]
[421676615,1778039439000,-500.0,0.00014999,2]
[421676617,1778039439000,-506.21252675,0.00014999,2]
[421676619,1778039439000,-500.0,0.00014999,2]
[421676621,1778039439000,-500.0,0.00014999,2]
[421676623,1778039439000,-500.0,0.00014999,2]
[421676629,1778039439000,-500.0,0.00014999,2]
[421676627,1778039439000,-500.0,0.00014999,2]
[421676625,1778039439000,-500.0,0.00014999,2]
[421676650,1778039439000,-500.0,0.00014999,2]
[421676641,1778039439000,-500.0,0.00014999,2]
[421676646,1778039439000,-500.0,0.00014999,2]
[421676654,1778039439000,-500.0,0.00014999,2]
[421676666,1778039439000,-500.0,0.00014999,2]
[421676658,1778039439000,-500.0,0.00014999,2]
[421676663,1778039439000,-500.0,0.00014999,2]
[421676683,1778039439000,-500.0,0.00014999,2]
[421676670,1778039439000,-500.0,0.00014999,2]
[421676674,1778039439000,-500.0,0.00014999,2]
[421676558,1778039439000,-500.0,0.00014899,2]
[421676611,1778039439000,-500.0,0.00014999,2]
[421676599,1778039439000,-3700.0,0.000149,5]